fUSD/lending_fUSD_20260109
["ID","MTS","AMOUNT","RATE_DAILY","PERIOD"]
[401150552,1767979831810,-500.0,0.00013698,2]
[401150553,1767979831820,-500.0,0.00013698,2]
[401150554,1767979831830,-549.36394183,0.00013698,2]
[401150555,1767979831839,-500.0,0.00013698,2]
[401150556,1767979831848,-597.23624248,0.00013698,2]
[401150557,1767979831858,-315.56,0.00013698,2]
[401150558,1767979831867,-573.37968592,0.00013698,2]
[401150560,1767979831877,-500.0,0.00013698,2]
[401150562,1767979831886,-556.51,0.00013698,2]
[401150564,1767979831895,-545.68,0.00013698,2]
[401150566,1767979831905,-500.0,0.00013698,2]
[401150568,1767979831914,-178.26,0.00013698,2]
[401150570,1767979831923,-500.0,0.00013698,2]
[401150571,1767979831932,-500.0,0.00013698,2]
[401150573,1767979831941,-500.0,0.00013698,2]
[401150574,1767979831950,-500.0,0.00013698,2]
[401150575,1767979831960,-500.0,0.00013698,2]
[401150576,1767979831969,-500.0,0.00013698,2]
[401150577,1767979831978,-500.0,0.00013698,2]
[401150578,1767979831987,-500.0,0.00013698,2]
[401150579,1767979831996,-500.0,0.00013698,2]
[401150580,1767979832006,-500.0,0.00013698,2]
[401150581,1767979832020,-500.0,0.00013698,2]
[401150582,1767979832029,-500.0,0.00013698,2]
[401150583,1767979832039,-568.66331461,0.00013698,2]
[401150584,1767979832048,-500.0,0.00013698,2]
[401150585,1767979832057,-500.0,0.00013698,2]
[401150586,1767979832067,-500.0,0.00013698,2]
[401150587,1767979832076,-500.0,0.00013698,2]
[401150588,1767979832085,-500.0,0.00013699,2]
[401150589,1767979832095,-500.0,0.00013699,2]
[401150590,1767979832104,-577.98562035,0.00013699,2]
[401150591,1767979832114,-1865.35574833,0.00013699,2]
[401150592,1767979832123,-1680.0,0.00013747,2]
[401150593,1767979832132,-1308.55,0.00013899,2]
[401150594,1767979832141,-315.56,0.00013972,2]
[401150595,1767979832151,-315.56,0.00014246,2]
[401150596,1767979832160,-279.55894597,0.0001425,2]
[401150597,1767979832169,-78206.59545357,0.0001427,2]
[401150598,1767979832181,-6038.63274483,0.0001427,2]
[401150599,1767979832214,-1037.1543125,0.0001427,2]
[401150600,1767979832224,-257.8752,0.0001427,2]
[401150601,1767979832235,-4233.75066493,0.0001427,2]
[401150602,1767979832246,-1157.04799734,0.0001427,2]
[401150603,1767979832288,-501.0,0.0001427,2]
[401150604,1767979832299,-2062.16196597,0.0001427,2]
[401150605,1767979832310,-351.95902904,0.0001427,2]
[401150606,1767979832321,-3678.92263182,0.0001427,2]
[401150607,1767979832330,-528.86809968,0.00014299,2]
[401150610,1767979837645,-175.33173559,0.00013699,2]
[401150611,1767979837655,-193.04743021,0.00014269,2]
[401150612,1767979837664,-1336.48764865,0.00014299,2]
[401150613,1767979837674,-315.56,0.0001452,2]
[401150614,1767979837683,-150.0,0.00014626,2]
[401150615,1767979837693,-150.0,0.00014626,2]
[401150616,1767979837702,-150.0,0.00014626,2]
[401150617,1767979837712,-150.0,0.00014626,2]
[401150618,1767979837721,-150.0,0.00014626,2]
[401150619,1767979837732,-150.0,0.00014626,2]
[401150620,1767979837741,-150.0,0.00014626,2]
[401150621,1767979837751,-150.0,0.00014626,2]
[401150622,1767979837760,-500.0,0.00014626,2]
[401150623,1767979837771,-150.0,0.00014626,2]
[401150624,1767979837781,-500.0,0.00014626,2]
[401150625,1767979837790,-150.0,0.00014626,2]
[401150626,1767979837800,-150.0,0.00014626,2]
[401150627,1767979837810,-150.0,0.00014626,2]
[401150628,1767979837820,-500.0,0.00014626,2]
[401150629,1767979837829,-500.0,0.00014626,2]
[401150630,1767979837840,-150.0,0.00014681,2]
[401150631,1767979837849,-150.0,0.00014681,2]
[401150632,1767979837858,-150.0,0.00014681,2]
[401150633,1767979837867,-150.0,0.00014681,2]
[401150634,1767979837877,-150.0,0.00014681,2]
[401150635,1767979837887,-150.0,0.00014681,2]
[401150636,1767979837898,-150.0,0.00014681,2]
[401150637,1767979837907,-500.0,0.00014681,2]
[401150639,1767979837917,-150.0,0.00014681,2]
[401150641,1767979837926,-500.0,0.00014681,2]
[401150643,1767979837935,-150.0,0.00014681,2]
[401150645,1767979837945,-500.0,0.00014681,2]
[401150647,1767979837954,-540.6958443,0.00014681,2]
[401150649,1767979837964,-500.0,0.00014714,2]
[401150651,1767979837973,-213.50861937,0.00014736,2]
[401150653,1767979837983,-200.0,0.00014736,2]
[401150655,1767979837992,-204.65964648,0.00014736,2]
[401150657,1767979838001,-207.76900192,0.00014736,2]
[401150659,1767979838011,-200.0,0.00014736,2]
[401150661,1767979838020,-150.0,0.00014736,2]
[401150662,1767979838029,-203.90419336,0.00014736,2]
[401150664,1767979838039,-500.0,0.00014736,2]
[401150666,1767979838049,-150.0,0.00014736,2]
[401150667,1767979838058,-500.0,0.00014736,2]
[401150670,1767979838068,-150.0,0.00014736,2]
[401150672,1767979838080,-500.0,0.00014736,2]
[401150674,1767979838089,-96.07990203,0.00014763,2]
[401150676,1767979838102,-259.71927172,0.00014763,2]
[401150677,1767979838112,-500.0,0.00014763,2]
[401150678,1767979838121,-150.0,0.0001479,2]
[401150679,1767979838131,-500.0,0.0001479,2]
[401150681,1767979838141,-150.0,0.0001479,2]
[401150683,1767979838150,-227.7633421,0.0001479,2]
[401150685,1767979838160,-202.53330152,0.0001479,2]
[401150687,1767979838169,-513.03020959,0.0001479,2]
[401150689,1767979838179,-315.56022595,0.00014794,2]
[401150690,1767979838188,-13979.67817803,0.00014819,2]
[401150693,1767979838200,-979.13021027,0.00014819,2]
[401150695,1767979838209,-150.0,0.00014845,2]
[401150697,1767979838219,-159.89186614,0.00014845,2]
[401150699,1767979838229,-164.48513271,0.00014845,2]
[401150701,1767979838238,-1865.35574833,0.00014899,2]
[401150703,1767979838249,-230.0,0.000149,2]
[401150704,1767979838259,-216.52645072,0.000149,2]
[401150706,1767979838271,-216.52645072,0.000149,2]
[401150708,1767979838280,-2351.0,0.00015121,2]
[401150710,1767979838290,-151.0,0.00015149,2]
[401150712,1767979838299,-151.0,0.00015149,2]
[401150714,1767979838309,-151.0,0.00015161,2]
[401150717,1767979838318,-151.0,0.00015161,2]
[401150718,1767979838328,-151.0,0.00015166,2]
[401150721,1767979838338,-151.0,0.00015166,2]
[401150723,1767979838349,-728.80884605,0.0001531,2]
[401150725,1767979838361,-271.19115395,0.0001531,2]
[401150727,1767979838372,-1865.35574833,0.000155,2]
[401150729,1767979838382,-150.0,0.000159,2]
[401150731,1767979838392,-150.0,0.000159,2]
[401150733,1767979838402,-4118.1768106,0.000159,2]
[401150735,1767979838412,-620.29603151,0.000159,2]
[401150737,1767979838422,-620.29603149,0.000159,2]
[401150739,1767979838431,-620.29603149,0.000159,2]
[401150741,1767979838441,-275.15603091,0.000159,2]
[401150743,1767979838452,-620.29603149,0.000159,2]
[401150745,1767979838465,-620.29603149,0.000159,2]
[401150747,1767979838474,-620.29603149,0.000159,2]
[401150749,1767979838484,-171.97251934,0.000159,2]
[401150751,1767979838494,-229.46594682,0.0001599,2]
[401150753,1767979838506,-4166.94113788,0.00016,4]
[401150755,1767979838522,-16785.15192604,0.00016,4]
[401150758,1767979838536,-6003.3091171,0.00016,4]
[401150767,1767979838620,-2578.60560507,0.00016,4]
[401150770,1767979838636,-2141.6994,0.00016,4]
[401150772,1767979838647,-5166.6679344,0.00016,4]
[401150775,1767979838664,-500.0,0.00016,4]
[401150777,1767979838676,-4176.20288896,0.00016,4]
[401150779,1767979838687,-2802.14483546,0.00016,4]
[401150781,1767979838699,-35973.60000001,0.00016,4]
[401150783,1767979838711,-3196.65031194,0.00016,4]
[401150786,1767979838722,-5992.06559615,0.00016,4]
[401150788,1767979838735,-196572.85656906,0.00016,4]
[401150792,1767979838770,-11064.83406574,0.00016,4]
[401150795,1767979838782,-5441.73635066,0.00016,4]
[401150797,1767979838793,-18949.71470413,0.00016,4]
[401150799,1767979838805,-4649.44841224,0.00016,4]
[401150801,1767979838817,-6342.2500751,0.00016,4]
[401150803,1767979838829,-5641.22738443,0.00016,4]
[401150808,1767979838867,-833.94736652,0.00016,4]
[401150860,1767979839720,-4337.20429625,0.00016,4]
[401150861,1767979839731,-20309.06284727,0.00016,4]
[401150862,1767979839747,-7968.61338269,0.00016,4]
[401150863,1767979839811,-6725.39,0.00016,4]
[401150864,1767979839823,-919.39818052,0.00016,4]
[401150865,1767979839834,-1736.33370989,0.00016,4]
[401150866,1767979839845,-869.24,0.00016,4]
[401150867,1767979839869,-186727.92236449,0.00016,4]
[401150868,1767979839953,-919452.1496663,0.00016,4]
[401150869,1767979839963,-279.55894597,0.00016,2]
[401150870,1767979839972,-1865.35574833,0.000161,2]
[401150871,1767979839981,-4118.17681059,0.00016122,2]
[401150872,1767979839990,-151.10085397,0.00016165,2]
[401150873,1767979839999,-150.35471955,0.00016165,2]
[401150874,1767979840009,-500.0,0.00016165,2]
[401150875,1767979840018,-152.0,0.00016169,3]
[401150876,1767979840027,-275.15603086,0.00016186,2]
[401150877,1767979840036,-150.0,0.000162,2]
[401150879,1767979840046,-5000.00546761,0.000162,5]
[401150880,1767979840055,-500.0,0.0001622,2]
[401150881,1767979840064,-490.93864057,0.00016275,2]
[401150886,1767979840362,-4118.17681059,0.00016344,2]
[401150887,1767979840374,-150.0,0.00016346,2]
[401150888,1767979840384,-152.0,0.00016367,4]
[401150889,1767979840393,-500.0,0.00016438,2]
[401150890,1767979840403,-500.0,0.00016438,2]
[401150891,1767979840412,-500.0,0.00016438,2]
[401150892,1767979840421,-427.19060181,0.00016438,2]
[401150893,1767979840430,-500.0,0.00016438,2]
[401150894,1767979840439,-500.0,0.00016438,2]
[401150895,1767979840448,-500.0,0.00016438,2]
[401150896,1767979840461,-34366.31717672,0.0001644,2]
[401150897,1767979840475,-55903.95128726,0.0001644,2]
[401150898,1767979840485,-78953.0640164,0.0001644,2]
[401150899,1767979840494,-102163.5945,0.0001644,2]
[401150900,1767979840503,-649.24,0.00016467,2]
[401150901,1767979840512,-275.15603086,0.00016471,2]
[401150902,1767979840523,-152.0,0.00016566,5]
[401150903,1767979840534,-4118.17681059,0.00016567,2]
[401150904,1767979840544,-3292.0,0.00016634,2]
[401150905,1767979840553,-1865.35574833,0.000167,2]
[401150906,1767979840562,-275.15603086,0.00016757,2]
[401150907,1767979840572,-152.0,0.00016765,6]
[401150908,1767979840581,-4118.17681059,0.00016789,2]
[401150909,1767979840590,-500.0,0.00016877,2]
[401150910,1767979840600,-152.0,0.00016963,7]
[401150911,1767979840609,-2299.99999604,0.00017,2]
[401150912,1767979840618,-250.0,0.00017,2]
[401150913,1767979840627,-4118.17681059,0.00017011,2]
[401150914,1767979840636,-275.15603086,0.00017043,2]
[401150915,1767979840645,-159.10718443,0.00017051,2]
[401150916,1767979840655,-318.0,0.00017073,2]
[401150917,1767979840664,-303.65393209,0.00017099,2]
[401150918,1767979840678,-322.6107,0.00017099,2]
[401150919,1767979840687,-553.64373807,0.00017099,2]
[401150920,1767979840697,-642.94,0.00017099,2]
[401150921,1767979840706,-152.0,0.00017162,8]
[401150922,1767979840715,-1000.0,0.000172,2]
[401150923,1767979840725,-4118.17681059,0.00017233,2]
[401150924,1767979840735,-649.24,0.00017291,2]
[401150925,1767979840745,-1865.35574833,0.000173,2]
[401150926,1767979840754,-275.15603086,0.00017329,2]
[401150927,1767979840763,-150.0,0.00017345,2]
[401150928,1767979840774,-487.0,0.00017351,2]
[401150929,1767979840783,-318.0,0.00017352,2]
[401150930,1767979840793,-152.0,0.0001736,9]
[401150931,1767979840803,-151.0,0.0001737,2]
[401150932,1767979840812,-1000.0,0.000174,2]
[401150933,1767979840823,-487.0,0.00017449,2]
[401150934,1767979840832,-4118.17681059,0.00017456,2]
[401150935,1767979840841,-487.0,0.00017461,2]
[401150936,1767979840851,-151.0,0.00017496,2]
[401150937,1767979840866,-2000.0,0.000175,2]
[401150938,1767979840876,-152.0,0.00017559,10]
[401150939,1767979840887,-275.15603086,0.00017614,2]
[401150940,1767979840897,-151.0,0.00017622,2]
[401150941,1767979840907,-2927.90722046,0.0001764,2]
[401150942,1767979840917,-574.12855637,0.00017647,2]
[401150943,1767979840927,-2493.79008289,0.00017673,2]
[401150944,1767979840938,-661.47,0.00017674,2]
[401150945,1767979840947,-661.58,0.00017674,2]
[401150946,1767979840957,-661.58,0.00017674,2]
[401150947,1767979840967,-1323.16,0.00017674,2]
[401150948,1767979840976,-661.58,0.00017674,2]
[401150949,1767979840986,-661.58,0.00017674,2]
[401150950,1767979840996,-661.58,0.00017674,2]
[401150951,1767979841005,-661.58,0.00017674,2]
[401150952,1767979841015,-4118.17681059,0.00017678,2]
[401150953,1767979841026,-1266.0,0.00017688,2]
[401150954,1767979841035,-1201.0,0.00017688,2]
[401150955,1767979841045,-914.0,0.00017688,2]
[401150956,1767979841056,-1405.0,0.00017688,2]
[401150957,1767979841068,-4819.0,0.00017688,2]
[401150958,1767979841079,-614.0,0.00017688,2]
[401150959,1767979841088,-487.0,0.00017701,2]
[401150960,1767979841098,-151.0,0.00017748,2]
[401150961,1767979841107,-152.0,0.00017757,11]
[401150962,1767979841117,-12099.0,0.000178,2]
[401150963,1767979841127,-1000.0,0.000178,2]
[401150964,1767979841137,-165.88,0.00017806,2]
[401150965,1767979841148,-200.35779431,0.00017808,2]
[401150966,1767979841158,-487.0,0.00017812,2]
[401150967,1767979841167,-200.0,0.00017855,2]
[401150968,1767979841177,-2000.0,0.00017856,2]
[401150969,1767979841186,-200.0,0.00017856,2]
[401150970,1767979841196,-151.0,0.00017874,2]
[401150971,1767979841206,-179.26667024,0.00017896,2]
[401150972,1767979841215,-1499.46583105,0.00017896,2]
[401150973,1767979841225,-1499.46583105,0.00017897,2]
[401150974,1767979841234,-1499.46583105,0.00017898,2]
[401150975,1767979841244,-1499.46583105,0.00017898,2]
[401150976,1767979841258,-856.41294077,0.00017899,2]
[401150977,1767979841269,-1499.46583105,0.00017899,2]
[401150978,1767979841279,-214.43976733,0.000179,2]
[401150979,1767979841288,-10000.0,0.000179,2]
[401150980,1767979841297,-9704.82107619,0.000179,3]
[401150981,1767979841307,-565.17771938,0.000179,2]
[401150982,1767979841317,-1865.35574833,0.000179,2]
[401150983,1767979841326,-2180.61295234,0.000179,2]
[401150984,1767979841336,-2180.61295231,0.000179,2]
[401150985,1767979841345,-2180.61295231,0.000179,2]
[401150986,1767979841354,-4834.31017102,0.000179,2]
[401150987,1767979841364,-2180.61295231,0.000179,2]
[401150988,1767979841373,-2180.61295231,0.000179,2]
[401150989,1767979841383,-2180.61295231,0.000179,2]
[401150990,1767979841393,-2180.61295231,0.000179,2]
[401150991,1767979841402,-1499.46583105,0.000179,2]
[401150992,1767979841412,-2180.61295231,0.000179,2]
[401150993,1767979841421,-773.31348478,0.000179,2]
[401150994,1767979841431,-4118.17681059,0.000179,2]
[401150995,1767979841441,-3205.18305285,0.000179,2]
[401150996,1767979841455,-2180.61295231,0.000179,2]
[401150997,1767979841467,-2180.61295231,0.000179,2]
[401150998,1767979841478,-2180.61295231,0.000179,2]
[401150999,1767979841488,-27199.40669553,0.000179,2]
[401151000,1767979841499,-500.0,0.000179,2]
[401151001,1767979841509,-500.0,0.000179,2]
[401151002,1767979841518,-500.0,0.000179,2]
[401151003,1767979841528,-500.0,0.000179,2]
[401151004,1767979841540,-500.0,0.000179,2]
[401151005,1767979841550,-500.0,0.000179,2]
[401151006,1767979841560,-500.0,0.000179,2]
[401151007,1767979841570,-500.0,0.000179,2]
[401151008,1767979841579,-500.0,0.000179,2]
[401151009,1767979841589,-500.0,0.000179,2]
[401151010,1767979841599,-500.0,0.000179,2]
[401151011,1767979841608,-500.0,0.000179,2]
[401151012,1767979841618,-500.0,0.000179,2]
[401151013,1767979841627,-500.0,0.000179,2]
[401151014,1767979841637,-500.0,0.000179,2]
[401151015,1767979841647,-500.0,0.000179,2]
[401151016,1767979841656,-500.0,0.000179,2]
[401151017,1767979841666,-500.0,0.000179,2]
[401151018,1767979841676,-500.0,0.000179,2]
[401151019,1767979841686,-500.0,0.000179,2]
[401151020,1767979841695,-3568.0,0.000179,2]
[401151021,1767979841705,-152.0,0.00017956,12]
[401151022,1767979841714,-487.0,0.00017958,2]
[401151023,1767979841724,-500.0,0.00017973,2]
[401151024,1767979841733,-500.0,0.00017973,2]
[401151025,1767979841743,-500.0,0.00017973,2]
[401151026,1767979841753,-500.0,0.00017973,2]
[401151027,1767979841763,-279.31517583,0.00017973,2]
[401151028,1767979841774,-500.0,0.00017973,2]
[401151029,1767979841784,-500.0,0.00017973,2]
[401151030,1767979841793,-500.0,0.00017973,2]
[401151031,1767979841803,-500.0,0.00017973,2]
[401151032,1767979841813,-500.0,0.00017973,2]
[401151033,1767979841823,-500.0,0.00017973,2]
[401151034,1767979841833,-500.0,0.00017973,2]
[401151035,1767979841843,-609.94892981,0.00017973,2]
[401151036,1767979841852,-500.0,0.00017973,2]
[401151037,1767979841862,-515.27642925,0.00017973,2]
[401151038,1767979841872,-195.06667749,0.00017973,2]
[401151039,1767979841881,-168.53464326,0.00017973,2]
[401151040,1767979841891,-500.0,0.00017973,2]
[401151041,1767979841901,-500.0,0.00017973,2]
[401151042,1767979841910,-500.0,0.00017973,2]
[401151043,1767979841921,-286.84842062,0.00017973,2]
[401151044,1767979841931,-500.0,0.00017973,2]
[401151045,1767979841940,-500.0,0.00017973,2]
[401151046,1767979841951,-500.0,0.00017973,2]
[401151047,1767979841961,-500.0,0.00017973,2]
[401151048,1767979841971,-500.0,0.00017973,2]
[401151049,1767979841980,-500.0,0.00017973,2]
[401151050,1767979841989,-500.0,0.00017973,2]
[401151051,1767979841999,-500.0,0.00017973,2]
[401151052,1767979842009,-500.0,0.00017973,2]
[401151053,1767979842018,-398.03125352,0.00017973,2]
[401151054,1767979842028,-500.0,0.00017973,2]
[401151055,1767979842037,-554.86072459,0.00017973,2]
[401151056,1767979842047,-500.0,0.00017973,2]
[401151057,1767979842057,-500.0,0.00017973,2]
[401151058,1767979842066,-182.86859792,0.00017973,2]
[401151059,1767979842076,-500.0,0.00017973,2]
[401151060,1767979842087,-500.0,0.00017973,2]
[401151061,1767979842097,-150.0,0.00017973,2]
[401151062,1767979842107,-500.0,0.00017973,2]
[401151063,1767979842116,-500.0,0.00017973,2]
[401151064,1767979842126,-500.0,0.00017973,2]
[401151065,1767979842136,-500.0,0.00017973,2]
[401151066,1767979842146,-501.05787152,0.00017973,2]
[401151067,1767979842155,-578.02071049,0.00017973,2]
[401151068,1767979842165,-500.0,0.00017973,2]
[401151069,1767979842174,-429.09119552,0.00017973,2]
[401151070,1767979842184,-500.0,0.00017973,2]
[401151071,1767979842193,-500.0,0.00017973,2]
[401151072,1767979842203,-500.0,0.00017973,2]
[401151073,1767979842213,-500.0,0.00017973,2]
[401151074,1767979842223,-165.3256661,0.00017973,2]
[401151075,1767979842233,-500.0,0.00017973,2]
[401151076,1767979842243,-500.0,0.00017973,2]
[401151077,1767979842253,-500.0,0.00017973,2]
[401151078,1767979842262,-500.0,0.00017973,2]
[401151079,1767979842273,-546.15438132,0.00017973,2]
[401151080,1767979842283,-208.06887662,0.00017973,2]
[401151081,1767979842293,-500.0,0.00017973,2]
[401151082,1767979842303,-500.0,0.00017973,2]
[401151083,1767979842312,-500.0,0.00017973,2]
[401151084,1767979842322,-500.0,0.00017973,2]
[401151085,1767979842332,-500.0,0.00017973,2]
[401151086,1767979842341,-150.0,0.00017973,2]
[401151087,1767979842353,-150.0,0.00017973,2]
[401151088,1767979842363,-500.0,0.00017982,2]
[401151089,1767979842373,-229.46594682,0.0001799,2]
[401151090,1767979842383,-229.46594682,0.0001799,2]
[401151091,1767979842393,-500.0,0.00017995,2]
[401151092,1767979842403,-500.0,0.00017995,2]
[401151093,1767979842413,-500.0,0.00017995,2]
[401151094,1767979842422,-5210.1520462,0.00017996,2]
[401151096,1767979842432,-239378.65325,0.00017996,2]
[401151098,1767979842442,-15712.7588601,0.00017996,2]
[401151099,1767979842452,-53382.739529,0.00017996,2]
[401151100,1767979842466,-4288.2826004,0.00017996,2]
[401151101,1767979842475,-150.0,0.00017999,2]
[401151102,1767979842485,-273.60393039,0.00017999,2]
[401151103,1767979842495,-1006.3197,0.00017999,2]
[401151104,1767979842505,-300.0,0.00017999,2]
[401151105,1767979842515,-300.0,0.00017999,2]
[401151106,1767979842527,-300.0,0.00017999,2]
[401151107,1767979842539,-666.0,0.00017999,2]
[401151108,1767979842548,-300.0,0.00017999,2]
[401151109,1767979842558,-11541.22312061,0.00017999,2]
[401151110,1767979842567,-7824.46415432,0.00017999,2]
[401151111,1767979842577,-300.0,0.00017999,2]
[401151112,1767979842587,-503.20312707,0.00017999,2]
[401151113,1767979842597,-150.0,0.00018,2]
[401151114,1767979842607,-2243488.84202028,0.00018,2]
[401151115,1767979842623,-8646.00078,0.00018,2]
[401151116,1767979842635,-1655.35490122,0.00018,2]
[401151117,1767979842647,-4075.44766994,0.00018,2]
[401151122,1767979843775,-151.0,0.00015588,2]
[401151123,1767979843786,-151.0,0.00015588,2]
[401151124,1767979843796,-4238.569781,0.0001582,2]
[401151125,1767979843806,-3468.0,0.00017688,2]
[401151126,1767979843816,-622027.4683003,0.00018,2]
[401151131,1767979845367,-956.549412,0.000179,2]
[401151140,1767979846154,-1224.06354031,0.000179,2]
[401151141,1767979846164,-8649.67372853,0.00018,2]
[401151142,1767979846324,-4246.38102493,0.00018,2]
[401151143,1767979846414,-362.62256568,0.00018,2]
[401151144,1767979846478,-9084.13527104,0.00018,2]
[401151146,1767980255248,500.0,0.000202,30]
[401151147,1767980285563,504.331,0.000202,30]
[401151148,1767980442434,500.0,0.000226,120]
[401151149,1767980452855,500.0,0.000226,120]
[401151183,1767981038592,-572.76483529,0.00015899,2]
[401151184,1767981038604,-952.63232692,0.00015899,2]
[401151185,1767981038613,-600.0,0.00015949,2]
[401151186,1767981038623,-118.1664208,0.00015998,2]
[401151227,1767981040607,-1081.8335792,0.00015998,2]
[401151228,1767981040616,-500.0,0.00015999,2]
[401151230,1767981040626,-500.0,0.00015999,2]
[401151232,1767981040635,-500.0,0.00015999,2]
[401151234,1767981040645,-503.20312707,0.00015999,2]
[401151235,1767981040654,-600.0,0.00016033,2]
[401151237,1767981040664,-150.0,0.000162,2]
[401151239,1767981040673,-164.42033085,0.00016245,2]
[401151241,1767981040683,-8160.96,0.00016279,2]
[401151243,1767981040692,-257.63,0.00016279,2]
[401151245,1767981040702,-463.78,0.00016298,2]
[401151247,1767981040711,-1869.73,0.00016298,2]
[401151248,1767981040721,-1158.71,0.00016346,2]
[401151250,1767981040730,-917.1,0.00016421,2]
[401151252,1767981040739,-1852.42,0.00016432,2]
[401151254,1767981040748,-165.71,0.00016439,2]
[401151256,1767981040758,-1000.0,0.00016441,2]
[401151258,1767981040770,-323.72,0.00016565,2]
[401151259,1767981040779,-159.9,0.00016712,2]
[401151261,1767981040788,-888.46,0.00016846,2]
[401151263,1767981040798,-150.0,0.00016886,2]
[401151265,1767981040808,-999.0,0.00016907,3]
[401151267,1767981040818,-927.8211,0.00016969,2]
[401151269,1767981040828,-189.79,0.00016976,2]
[401151271,1767981040838,-500.0,0.00016986,2]
[401151272,1767981040848,-159.10718443,0.00016998,2]
[401151274,1767981040857,-380.79895576,0.00016999,2]
[401151276,1767981040867,-3072.0,0.00017,2]
[401151278,1767981040877,-3000.0,0.00017,2]
[401151280,1767981040887,-2605.0,0.00017,2]
[401151282,1767981040896,-1000.0,0.00017,2]
[401151284,1767981040905,-1000.0,0.00017058,2]
[401151285,1767981040914,-3240.0,0.00017069,2]
[401151287,1767981040923,-252.42437943,0.00017071,2]
[401151289,1767981040932,-322.6107,0.00017099,2]
[401151291,1767981040942,-303.65393209,0.00017099,2]
[401151293,1767981040951,-642.94,0.00017099,2]
[401151294,1767981040961,-553.64373807,0.00017099,2]
[401151296,1767981040970,-5000.0,0.000171,2]
[401151297,1767981040984,-5000.0,0.000173,2]
[401151298,1767981040993,-165.71,0.00017353,2]
[401151299,1767981041003,-150.0,0.00017353,2]
[401151300,1767981041012,-150.0,0.00017353,2]
[401151301,1767981041022,-151.0,0.00017378,2]
[401151302,1767981041032,-1826.0,0.000174,2]
[401151303,1767981041041,-150.0,0.00017408,2]
[401151304,1767981041051,-150.0,0.00017408,2]
[401151305,1767981041061,-213.10958088,0.00017463,2]
[401151306,1767981041071,-205.58205846,0.00017463,2]
[401151307,1767981041081,-229.98710455,0.00017471,2]
[401151308,1767981041090,-600.0,0.00017489,2]
[401151309,1767981041100,-600.0,0.00017489,2]
[401151310,1767981041110,-5000.0,0.000175,2]
[401151311,1767981041120,-5000.0,0.000175,2]
[401151312,1767981041131,-151.0,0.00017502,2]
[401151313,1767981041142,-166.67,0.00017534,2]
[401151314,1767981041151,-600.0,0.00017544,2]
[401151315,1767981041161,-150.0,0.0001757,2]
[401151316,1767981041171,-1680.0,0.00017579,2]
[401151317,1767981041184,-151.0,0.00017627,2]
[401151318,1767981041193,-243.633,0.0001763,2]
[401151319,1767981041203,-1830.2,0.0001763,2]
[401151320,1767981041213,-1831.8782,0.0001763,2]
[401151321,1767981041223,-2211.33788252,0.00017634,2]
[401151322,1767981041233,-2927.90722046,0.0001764,2]
[401151323,1767981041242,-183.0,0.00017643,2]
[401151324,1767981041252,-1078.775,0.00017647,2]
[401151325,1767981041262,-574.12855637,0.00017647,2]
[401151326,1767981041272,-5762.0734171,0.00017651,2]
[401151327,1767981041281,-2211.33788248,0.00017664,2]
[401151328,1767981041291,-296.0,0.00017674,2]
[401151329,1767981041301,-1000.0,0.00017674,2]
[401151330,1767981041310,-183.0,0.00017678,2]
[401151331,1767981041319,-5762.07341706,0.00017679,2]